Workbook

Sheet Start

Sheet PodsumowanieIX (hidden)
F3: Wynik testu: | H3: P90 >= 0,75*Limit: Brak możliwości zmniejszenia częstotliwości monitorowania emisji
B5: Lp. | C5: Wynik pomiaru | D5: P(90) | E5: 0,75*Limit
B6: 1 | C6: 500 | D6: =Arkusz7!$L$16 -> 160 | E6: =Arkusz7!$L$17 -> 7.5e-06
B7: 2 | C7: 100 | D7: =Arkusz7!$L$16 -> 160 | E7: =Arkusz7!$L$17 -> 7.5e-06
B8: 3 | C8: 30 | D8: =Arkusz7!$L$16 -> 160 | E8: =Arkusz7!$L$17 -> 7.5e-06
B9: 4 | C9: 25 | D9: =Arkusz7!$L$16 -> 160 | E9: =Arkusz7!$L$17 -> 7.5e-06
B10: 5 | C10: 30 | D10: =Arkusz7!$L$16 -> 160 | E10: =Arkusz7!$L$17 -> 7.5e-06
B11: 6 | C11: 74 | D11: =Arkusz7!$L$16 -> 160 | E11: =Arkusz7!$L$17 -> 7.5e-06
B12: 7 | C12: 1000 | D12: =Arkusz7!$L$16 -> 160 | E12: =Arkusz7!$L$17 -> 7.5e-06
B13: 8 | C13: 55 | D13: =Arkusz7!$L$16 -> 160 | E13: =Arkusz7!$L$17 -> 7.5e-06
B14: 9 | C14: 115 | D14: =Arkusz7!$L$16 -> 160 | E14: =Arkusz7!$L$17 -> 7.5e-06
B15: 10 | C15: 135 | D15: =Arkusz7!$L$16 -> 160 | E15: =Arkusz7!$L$17 -> 7.5e-06
B16: 11 | C16: 120 | D16: =Arkusz7!$L$16 -> 160 | E16: =Arkusz7!$L$17 -> 7.5e-06
B17: 12 | C17: 160 | D17: =Arkusz7!$L$16 -> 160 | E17: =Arkusz7!$L$17 -> 7.5e-06
B18: 13 | C18: 105 | D18: =Arkusz7!$L$16 -> 160 | E18: =Arkusz7!$L$17 -> 7.5e-06
B19: 14 | C19: 115 | D19: =Arkusz7!$L$16 -> 160 | E19: =Arkusz7!$L$17 -> 7.5e-06
B20: 15 | C20: 130 | D20: =Arkusz7!$L$16 -> 160 | E20: =Arkusz7!$L$17 -> 7.5e-06
B21: 16 | C21: 140 | D21: =Arkusz7!$L$16 -> 160 | E21: =Arkusz7!$L$17 -> 7.5e-06
B22: 17 | C22: 150 | D22: =Arkusz7!$L$16 -> 160 | E22: =Arkusz7!$L$17 -> 7.5e-06
B23: 18 | C23: 160 | D23: =Arkusz7!$L$16 -> 160 | E23: =Arkusz7!$L$17 -> 7.5e-06
B24: 19 | C24: 105 | D24: =Arkusz7!$L$16 -> 160 | E24: =Arkusz7!$L$17 -> 7.5e-06
B25: 20 | C25: 115 | D25: =Arkusz7!$L$16 -> 160 | E25: =Arkusz7!$L$17 -> 7.5e-06
B26: 21 | C26: 125 | D26: =Arkusz7!$L$16 -> 160 | E26: =Arkusz7!$L$17 -> 7.5e-06
B27: 22 | C27: 135 | D27: =Arkusz7!$L$16 -> 160 | E27: =Arkusz7!$L$17 -> 7.5e-06
B28: 23 | C28: 100 | D28: =Arkusz7!$L$16 -> 160 | E28: =Arkusz7!$L$17 -> 7.5e-06
B29: 24 | C29: 150 | D29: =Arkusz7!$L$16 -> 160 | E29: =Arkusz7!$L$17 -> 7.5e-06
B30: 25 | C30: 160 | D30: =Arkusz7!$L$16 -> 160 | E30: =Arkusz7!$L$17 -> 7.5e-06
B31: 26 | C31: 105 | D31: =Arkusz7!$L$16 -> 160 | E31: =Arkusz7!$L$17 -> 7.5e-06
B32: 27 | C32: 115 | D32: =Arkusz7!$L$16 -> 160 | E32: =Arkusz7!$L$17 -> 7.5e-06
B33: 28 | C33: 125 | D33: =Arkusz7!$L$16 -> 160 | E33: =Arkusz7!$L$17 -> 7.5e-06
B34: 29 | C34: 135 | D34: =Arkusz7!$L$16 -> 160 | E34: =Arkusz7!$L$17 -> 7.5e-06
B35: 30 | C35: 100 | D35: =Arkusz7!$L$16 -> 160 | E35: =Arkusz7!$L$17 -> 7.5e-06
B36: 31 | C36: 110 | D36: =Arkusz7!$L$16 -> 160 | E36: =Arkusz7!$L$17 -> 7.5e-06
B37: 32 | C37: 120 | D37: =Arkusz7!$L$16 -> 160 | E37: =Arkusz7!$L$17 -> 7.5e-06
B38: 33 | C38: 130 | D38: =Arkusz7!$L$16 -> 160 | E38: =Arkusz7!$L$17 -> 7.5e-06
B39: 34 | C39: 140 | D39: =Arkusz7!$L$16 -> 160 | E39: =Arkusz7!$L$17 -> 7.5e-06
B40: 35 | C40: 150 | D40: =Arkusz7!$L$16 -> 160 | E40: =Arkusz7!$L$17 -> 7.5e-06
B41: 36 | C41: 160 | D41: =Arkusz7!$L$16 -> 160 | E41: =Arkusz7!$L$17 -> 7.5e-06
B42: 37 | C42: 105 | D42: =Arkusz7!$L$16 -> 160 | E42: =Arkusz7!$L$17 -> 7.5e-06
B43: 38 | C43: 115 | D43: =Arkusz7!$L$16 -> 160 | E43: =Arkusz7!$L$17 -> 7.5e-06
B44: 39 | C44: 125 | D44: =Arkusz7!$L$16 -> 160 | E44: =Arkusz7!$L$17 -> 7.5e-06
B45: 40 | C45: 135 | D45: =Arkusz7!$L$16 -> 160 | E45: =Arkusz7!$L$17 -> 7.5e-06
B46: 41 | C46: 100 | D46: =Arkusz7!$L$16 -> 160 | E46: =Arkusz7!$L$17 -> 7.5e-06
B47: 42 | C47: 110 | D47: =Arkusz7!$L$16 -> 160 | E47: =Arkusz7!$L$17 -> 7.5e-06
B48: 43 | C48: 120 | D48: =Arkusz7!$L$16 -> 160 | E48: =Arkusz7!$L$17 -> 7.5e-06
B49: 44 | C49: 130 | D49: =Arkusz7!$L$16 -> 160 | E49: =Arkusz7!$L$17 -> 7.5e-06
B50: 45 | C50: 140 | D50: =Arkusz7!$L$16 -> 160 | E50: =Arkusz7!$L$17 -> 7.5e-06
B51: 46 | C51: 150 | D51: =Arkusz7!$L$16 -> 160 | E51: =Arkusz7!$L$17 -> 7.5e-06
B52: 47 | C52: 160 | D52: =Arkusz7!$L$16 -> 160 | E52: =Arkusz7!$L$17 -> 7.5e-06
B53: 48 | C53: 105 | D53: =Arkusz7!$L$16 -> 160 | E53: =Arkusz7!$L$17 -> 7.5e-06
B54: 49 | C54: 115 | D54: =Arkusz7!$L$16 -> 160 | E54: =Arkusz7!$L$17 -> 7.5e-06
B55: 50 | C55: 125 | D55: =Arkusz7!$L$16 -> 160 | E55: =Arkusz7!$L$17 -> 7.5e-06
B56: 51 | C56: 135 | D56: =Arkusz7!$L$16 -> 160 | E56: =Arkusz7!$L$17 -> 7.5e-06
B57: 52 | C57: 100 | D57: =Arkusz7!$L$16 -> 160 | E57: =Arkusz7!$L$17 -> 7.5e-06
B58: 53 | C58: 110 | D58: =Arkusz7!$L$16 -> 160 | E58: =Arkusz7!$L$17 -> 7.5e-06
B59: 54 | C59: 120 | D59: =Arkusz7!$L$16 -> 160 | E59: =Arkusz7!$L$17 -> 7.5e-06
B60: 55 | C60: 130 | D60: =Arkusz7!$L$16 -> 160 | E60: =Arkusz7!$L$17 -> 7.5e-06
B61: 56 | C61: 140 | D61: =Arkusz7!$L$16 -> 160 | E61: =Arkusz7!$L$17 -> 7.5e-06
B62: 57 | C62: 150 | D62: =Arkusz7!$L$16 -> 160 | E62: =Arkusz7!$L$17 -> 7.5e-06
B63: 58 | C63: 160 | D63: =Arkusz7!$L$16 -> 160 | E63: =Arkusz7!$L$17 -> 7.5e-06
B64: 59 | C64: 105 | D64: =Arkusz7!$L$16 -> 160 | E64: =Arkusz7!$L$17 -> 7.5e-06
B65: 60 | C65: 115 | D65: =Arkusz7!$L$16 -> 160 | E65: =Arkusz7!$L$17 -> 7.5e-06
B66: 61 | C66: 125 | D66: =Arkusz7!$L$16 -> 160 | E66: =Arkusz7!$L$17 -> 7.5e-06
B67: 62 | C67: 135 | D67: =Arkusz7!$L$16 -> 160 | E67: =Arkusz7!$L$17 -> 7.5e-06
B68: 63 | C68: 100 | D68: =Arkusz7!$L$16 -> 160 | E68: =Arkusz7!$L$17 -> 7.5e-06
B69: 64 | C69: 110 | D69: =Arkusz7!$L$16 -> 160 | E69: =Arkusz7!$L$17 -> 7.5e-06
B70: 65 | C70: 120 | D70: =Arkusz7!$L$16 -> 160 | E70: =Arkusz7!$L$17 -> 7.5e-06
B71: 66 | C71: 130 | D71: =Arkusz7!$L$16 -> 160 | E71: =Arkusz7!$L$17 -> 7.5e-06
B72: 67 | C72: 140 | D72: =Arkusz7!$L$16 -> 160 | E72: =Arkusz7!$L$17 -> 7.5e-06
B73: 68 | C73: 150 | D73: =Arkusz7!$L$16 -> 160 | E73: =Arkusz7!$L$17 -> 7.5e-06
B74: 69 | C74: 160 | D74: =Arkusz7!$L$16 -> 160 | E74: =Arkusz7!$L$17 -> 7.5e-06
B75: 70 | C75: 105 | D75: =Arkusz7!$L$16 -> 160 | E75: =Arkusz7!$L$17 -> 7.5e-06
B76: 71 | C76: 115 | D76: =Arkusz7!$L$16 -> 160 | E76: =Arkusz7!$L$17 -> 7.5e-06
B77: 72 | C77: 125 | D77: =Arkusz7!$L$16 -> 160 | E77: =Arkusz7!$L$17 -> 7.5e-06
B78: 73 | C78: 135 | D78: =Arkusz7!$L$16 -> 160 | E78: =Arkusz7!$L$17 -> 7.5e-06
B79: 74 | C79: 100 | D79: =Arkusz7!$L$16 -> 160 | E79: =Arkusz7!$L$17 -> 7.5e-06
B80: 75 | C80: 110 | D80: =Arkusz7!$L$16 -> 160 | E80: =Arkusz7!$L$17 -> 7.5e-06
B81: 76 | C81: 120 | D81: =Arkusz7!$L$16 -> 160 | E81: =Arkusz7!$L$17 -> 7.5e-06
B82: 77 | C82: 130 | D82: =Arkusz7!$L$16 -> 160 | E82: =Arkusz7!$L$17 -> 7.5e-06
B83: 78 | C83: 140 | D83: =Arkusz7!$L$16 -> 160 | E83: =Arkusz7!$L$17 -> 7.5e-06
B84: 79 | C84: 150 | D84: =Arkusz7!$L$16 -> 160 | E84: =Arkusz7!$L$17 -> 7.5e-06
B85: 80 | C85: 160 | D85: =Arkusz7!$L$16 -> 160 | E85: =Arkusz7!$L$17 -> 7.5e-06
B86: 81 | C86: 105 | D86: =Arkusz7!$L$16 -> 160 | E86: =Arkusz7!$L$17 -> 7.5e-06
B87: 82 | C87: 115 | D87: =Arkusz7!$L$16 -> 160 | E87: =Arkusz7!$L$17 -> 7.5e-06
B88: 83 | C88: 125 | D88: =Arkusz7!$L$16 -> 160 | E88: =Arkusz7!$L$17 -> 7.5e-06
B89: 84 | C89: 135 | D89: =Arkusz7!$L$16 -> 160 | E89: =Arkusz7!$L$17 -> 7.5e-06
B90: 85 | C90: 100 | D90: =Arkusz7!$L$16 -> 160 | E90: =Arkusz7!$L$17 -> 7.5e-06
B91: 86 | C91: 110 | D91: =Arkusz7!$L$16 -> 160 | E91: =Arkusz7!$L$17 -> 7.5e-06
B92: 87 | C92: 120 | D92: =Arkusz7!$L$16 -> 160 | E92: =Arkusz7!$L$17 -> 7.5e-06
B93: 88 | C93: 130 | D93: =Arkusz7!$L$16 -> 160 | E93: =Arkusz7!$L$17 -> 7.5e-06
B94: 89 | C94: 140 | D94: =Arkusz7!$L$16 -> 160 | E94: =Arkusz7!$L$17 -> 7.5e-06
B95: 90 | C95: 150 | D95: =Arkusz7!$L$16 -> 160 | E95: =Arkusz7!$L$17 -> 7.5e-06
B96: 91 | C96: 160 | D96: =Arkusz7!$L$16 -> 160 | E96: =Arkusz7!$L$17 -> 7.5e-06
B97: 92 | C97: 105 | D97: =Arkusz7!$L$16 -> 160 | E97: =Arkusz7!$L$17 -> 7.5e-06
B98: 93 | C98: 115 | D98: =Arkusz7!$L$16 -> 160 | E98: =Arkusz7!$L$17 -> 7.5e-06
B99: 94 | C99: 125 | D99: =Arkusz7!$L$16 -> 160 | E99: =Arkusz7!$L$17 -> 7.5e-06
B100: 95 | C100: 135 | D100: =Arkusz7!$L$16 -> 160 | E100: =Arkusz7!$L$17 -> 7.5e-06
B101: 96 | C101: 100 | D101: =Arkusz7!$L$16 -> 160 | E101: =Arkusz7!$L$17 -> 7.5e-06
B102: 97 | D102: =Arkusz7!$L$16 -> 160 | E102: =Arkusz7!$L$17 -> 7.5e-06
B103: 98 | D103: =Arkusz7!$L$16 -> 160 | E103: =Arkusz7!$L$17 -> 7.5e-06
B104: 99 | D104: =Arkusz7!$L$16 -> 160 | E104: =Arkusz7!$L$17 -> 7.5e-06
B105: 100 | D105: =Arkusz7!$L$16 -> 160 | E105: =Arkusz7!$L$17 -> 7.5e-06
B106: 101 | D106: =Arkusz7!$L$16 -> 160 | E106: =Arkusz7!$L$17 -> 7.5e-06
B107: 102 | D107: =Arkusz7!$L$16 -> 160 | E107: =Arkusz7!$L$17 -> 7.5e-06
B108: 103 | D108: =Arkusz7!$L$16 -> 160 | E108: =Arkusz7!$L$17 -> 7.5e-06
B109: 104 | D109: =Arkusz7!$L$16 -> 160 | E109: =Arkusz7!$L$17 -> 7.5e-06
B110: 105 | D110: =Arkusz7!$L$16 -> 160 | E110: =Arkusz7!$L$17 -> 7.5e-06
B111: 106 | D111: =Arkusz7!$L$16 -> 160 | E111: =Arkusz7!$L$17 -> 7.5e-06
B112: 107 | D112: =Arkusz7!$L$16 -> 160 | E112: =Arkusz7!$L$17 -> 7.5e-06
B113: 108 | D113: =Arkusz7!$L$16 -> 160 | E113: =Arkusz7!$L$17 -> 7.5e-06
B114: 109 | D114: =Arkusz7!$L$16 -> 160 | E114: =Arkusz7!$L$17 -> 7.5e-06
B115: 110 | D115: =Arkusz7!$L$16 -> 160 | E115: =Arkusz7!$L$17 -> 7.5e-06
B116: 111 | D116: =Arkusz7!$L$16 -> 160 | E116: =Arkusz7!$L$17 -> 7.5e-06
B117: 112 | D117: =Arkusz7!$L$16 -> 160 | E117: =Arkusz7!$L$17 -> 7.5e-06
B118: 113 | D118: =Arkusz7!$L$16 -> 160 | E118: =Arkusz7!$L$17 -> 7.5e-06
B119: 114 | D119: =Arkusz7!$L$16 -> 160 | E119: =Arkusz7!$L$17 -> 7.5e-06
B120: 115 | D120: =Arkusz7!$L$16 -> 160 | E120: =Arkusz7!$L$17 -> 7.5e-06
B121: 116 | D121: =Arkusz7!$L$16 -> 160 | E121: =Arkusz7!$L$17 -> 7.5e-06
B122: 117 | D122: =Arkusz7!$L$16 -> 160 | E122: =Arkusz7!$L$17 -> 7.5e-06
B123: 118 | D123: =Arkusz7!$L$16 -> 160 | E123: =Arkusz7!$L$17 -> 7.5e-06
B124: 119 | D124: =Arkusz7!$L$16 -> 160 | E124: =Arkusz7!$L$17 -> 7.5e-06
B125: 120 | D125: =Arkusz7!$L$16 -> 160 | E125: =Arkusz7!$L$17 -> 7.5e-06
B126: 121 | D126: =Arkusz7!$L$16 -> 160 | E126: =Arkusz7!$L$17 -> 7.5e-06
B127: 122 | D127: =Arkusz7!$L$16 -> 160 | E127: =Arkusz7!$L$17 -> 7.5e-06
B128: 123 | D128: =Arkusz7!$L$16 -> 160 | E128: =Arkusz7!$L$17 -> 7.5e-06
B129: 124 | D129: =Arkusz7!$L$16 -> 160 | E129: =Arkusz7!$L$17 -> 7.5e-06
B130: 125 | D130: =Arkusz7!$L$16 -> 160 | E130: =Arkusz7!$L$17 -> 7.5e-06
B131: 126 | D131: =Arkusz7!$L$16 -> 160 | E131: =Arkusz7!$L$17 -> 7.5e-06
B132: 127 | D132: =Arkusz7!$L$16 -> 160 | E132: =Arkusz7!$L$17 -> 7.5e-06
B133: 128 | D133: =Arkusz7!$L$16 -> 160 | E133: =Arkusz7!$L$17 -> 7.5e-06
B134: 129 | D134: =Arkusz7!$L$16 -> 160 | E134: =Arkusz7!$L$17 -> 7.5e-06
B135: 130 | D135: =Arkusz7!$L$16 -> 160 | E135: =Arkusz7!$L$17 -> 7.5e-06
B136: 131 | D136: =Arkusz7!$L$16 -> 160 | E136: =Arkusz7!$L$17 -> 7.5e-06
B137: 132 | D137: =Arkusz7!$L$16 -> 160 | E137: =Arkusz7!$L$17 -> 7.5e-06
B138: 133 | D138: =Arkusz7!$L$16 -> 160 | E138: =Arkusz7!$L$17 -> 7.5e-06
B139: 134 | D139: =Arkusz7!$L$16 -> 160 | E139: =Arkusz7!$L$17 -> 7.5e-06
B140: 135 | D140: =Arkusz7!$L$16 -> 160 | E140: =Arkusz7!$L$17 -> 7.5e-06
B141: 136 | D141: =Arkusz7!$L$16 -> 160 | E141: =Arkusz7!$L$17 -> 7.5e-06
B142: 137 | D142: =Arkusz7!$L$16 -> 160 | E142: =Arkusz7!$L$17 -> 7.5e-06
B143: 138 | D143: =Arkusz7!$L$16 -> 160 | E143: =Arkusz7!$L$17 -> 7.5e-06
B144: 139 | D144: =Arkusz7!$L$16 -> 160 | E144: =Arkusz7!$L$17 -> 7.5e-06
B145: 140 | D145: =Arkusz7!$L$16 -> 160 | E145: =Arkusz7!$L$17 -> 7.5e-06
B146: 141 | D146: =Arkusz7!$L$16 -> 160 | E146: =Arkusz7!$L$17 -> 7.5e-06
B147: 142 | D147: =Arkusz7!$L$16 -> 160 | E147: =Arkusz7!$L$17 -> 7.5e-06
B148: 143 | D148: =Arkusz7!$L$16 -> 160 | E148: =Arkusz7!$L$17 -> 7.5e-06
B149: 144 | D149: =Arkusz7!$L$16 -> 160 | E149: =Arkusz7!$L$17 -> 7.5e-06
B150: 145 | D150: =Arkusz7!$L$16 -> 160 | E150: =Arkusz7!$L$17 -> 7.5e-06
B151: 146 | D151: =Arkusz7!$L$16 -> 160 | E151: =Arkusz7!$L$17 -> 7.5e-06
B152: 147 | D152: =Arkusz7!$L$16 -> 160 | E152: =Arkusz7!$L$17 -> 7.5e-06
B153: 148 | D153: =Arkusz7!$L$16 -> 160 | E153: =Arkusz7!$L$17 -> 7.5e-06
B154: 149 | D154: =Arkusz7!$L$16 -> 160 | E154: =Arkusz7!$L$17 -> 7.5e-06
B155: 150 | D155: =Arkusz7!$L$16 -> 160 | E155: =Arkusz7!$L$17 -> 7.5e-06
B156: 151 | D156: =Arkusz7!$L$16 -> 160 | E156: =Arkusz7!$L$17 -> 7.5e-06
B157: 152 | D157: =Arkusz7!$L$16 -> 160 | E157: =Arkusz7!$L$17 -> 7.5e-06
B158: 153 | D158: =Arkusz7!$L$16 -> 160 | E158: =Arkusz7!$L$17 -> 7.5e-06
B159: 154 | D159: =Arkusz7!$L$16 -> 160 | E159: =Arkusz7!$L$17 -> 7.5e-06
B160: 155 | D160: =Arkusz7!$L$16 -> 160 | E160: =Arkusz7!$L$17 -> 7.5e-06
B161: 156 | D161: =Arkusz7!$L$16 -> 160 | E161: =Arkusz7!$L$17 -> 7.5e-06
B162: 157 | D162: =Arkusz7!$L$16 -> 160 | E162: =Arkusz7!$L$17 -> 7.5e-06
B163: 158 | D163: =Arkusz7!$L$16 -> 160 | E163: =Arkusz7!$L$17 -> 7.5e-06
B164: 159 | D164: =Arkusz7!$L$16 -> 160 | E164: =Arkusz7!$L$17 -> 7.5e-06
B165: 160 | D165: =Arkusz7!$L$16 -> 160 | E165: =Arkusz7!$L$17 -> 7.5e-06
B166: 161 | D166: =Arkusz7!$L$16 -> 160 | E166: =Arkusz7!$L$17 -> 7.5e-06
B167: 162 | D167: =Arkusz7!$L$16 -> 160 | E167: =Arkusz7!$L$17 -> 7.5e-06
B168: 163 | D168: =Arkusz7!$L$16 -> 160 | E168: =Arkusz7!$L$17 -> 7.5e-06
B169: 164 | D169: =Arkusz7!$L$16 -> 160 | E169: =Arkusz7!$L$17 -> 7.5e-06
B170: 165 | D170: =Arkusz7!$L$16 -> 160 | E170: =Arkusz7!$L$17 -> 7.5e-06
B171: 166 | D171: =Arkusz7!$L$16 -> 160 | E171: =Arkusz7!$L$17 -> 7.5e-06
B172: 167 | D172: =Arkusz7!$L$16 -> 160 | E172: =Arkusz7!$L$17 -> 7.5e-06
B173: 168 | D173: =Arkusz7!$L$16 -> 160 | E173: =Arkusz7!$L$17 -> 7.5e-06
B174: 169 | D174: =Arkusz7!$L$16 -> 160 | E174: =Arkusz7!$L$17 -> 7.5e-06
B175: 170 | D175: =Arkusz7!$L$16 -> 160 | E175: =Arkusz7!$L$17 -> 7.5e-06
B176: 171 | D176: =Arkusz7!$L$16 -> 160 | E176: =Arkusz7!$L$17 -> 7.5e-06
B177: 172 | D177: =Arkusz7!$L$16 -> 160 | E177: =Arkusz7!$L$17 -> 7.5e-06
B178: 173 | D178: =Arkusz7!$L$16 -> 160 | E178: =Arkusz7!$L$17 -> 7.5e-06
B179: 174 | D179: =Arkusz7!$L$16 -> 160 | E179: =Arkusz7!$L$17 -> 7.5e-06
B180: 175 | D180: =Arkusz7!$L$16 -> 160 | E180: =Arkusz7!$L$17 -> 7.5e-06
B181: 176 | D181: =Arkusz7!$L$16 -> 160 | E181: =Arkusz7!$L$17 -> 7.5e-06
B182: 177 | D182: =Arkusz7!$L$16 -> 160 | E182: =Arkusz7!$L$17 -> 7.5e-06
B183: 178 | D183: =Arkusz7!$L$16 -> 160 | E183: =Arkusz7!$L$17 -> 7.5e-06
B184: 179 | D184: =Arkusz7!$L$16 -> 160 | E184: =Arkusz7!$L$17 -> 7.5e-06
B185: 180 | D185: =Arkusz7!$L$16 -> 160 | E185: =Arkusz7!$L$17 -> 7.5e-06
B186: 181 | D186: =Arkusz7!$L$16 -> 160 | E186: =Arkusz7!$L$17 -> 7.5e-06
B187: 182 | D187: =Arkusz7!$L$16 -> 160 | E187: =Arkusz7!$L$17 -> 7.5e-06
B188: 183 | D188: =Arkusz7!$L$16 -> 160 | E188: =Arkusz7!$L$17 -> 7.5e-06
B189: 184 | D189: =Arkusz7!$L$16 -> 160 | E189: =Arkusz7!$L$17 -> 7.5e-06
B190: 185 | D190: =Arkusz7!$L$16 -> 160 | E190: =Arkusz7!$L$17 -> 7.5e-06
B191: 186 | D191: =Arkusz7!$L$16 -> 160 | E191: =Arkusz7!$L$17 -> 7.5e-06
B192: 187 | D192: =Arkusz7!$L$16 -> 160 | E192: =Arkusz7!$L$17 -> 7.5e-06
B193: 188 | D193: =Arkusz7!$L$16 -> 160 | E193: =Arkusz7!$L$17 -> 7.5e-06
B194: 189 | D194: =Arkusz7!$L$16 -> 160 | E194: =Arkusz7!$L$17 -> 7.5e-06
B195: 190 | D195: =Arkusz7!$L$16 -> 160 | E195: =Arkusz7!$L$17 -> 7.5e-06
B196: 191 | D196: =Arkusz7!$L$16 -> 160 | E196: =Arkusz7!$L$17 -> 7.5e-06
B197: 192 | D197: =Arkusz7!$L$16 -> 160 | E197: =Arkusz7!$L$17 -> 7.5e-06
B198: 193 | D198: =Arkusz7!$L$16 -> 160 | E198: =Arkusz7!$L$17 -> 7.5e-06
B199: 194 | D199: =Arkusz7!$L$16 -> 160 | E199: =Arkusz7!$L$17 -> 7.5e-06
B200: 195 | D200: =Arkusz7!$L$16 -> 160 | E200: =Arkusz7!$L$17 -> 7.5e-06
B201: 196 | D201: =Arkusz7!$L$16 -> 160 | E201: =Arkusz7!$L$17 -> 7.5e-06
B202: 197 | D202: =Arkusz7!$L$16 -> 160 | E202: =Arkusz7!$L$17 -> 7.5e-06
B203: 198 | D203: =Arkusz7!$L$16 -> 160 | E203: =Arkusz7!$L$17 -> 7.5e-06
... 168 more rows

Sheet IX poziom (hidden)
B3: Lp | C3: Wartość
B4: 1 | C4: 500
B5: 2 | C5: 100
B6: 3 | C6: 30
B7: 4 | C7: 25
B8: 5 | C8: 30
B9: 6 | C9: 74
B10: 7 | C10: 1000
B11: 8 | C11: 55
B12: 9 | C12: 115
B13: 10 | C13: 0
B14: 11 | C14: 135 | E14: Liczba rekordów nie-zerowych: | H14: =COUNTIF(Tabela5[Wartość],">0") -> 96
B15: 12 | C15: 0
B16: 13 | C16: 0
B17: 14 | C17: 120
B18: 15 | C18: 0
B19: 16 | C19: 0
B20: 17 | C20: 0
B21: 18 | C21: 160
B22: 19 | C22: 105
B23: 20 | C23: 115
B24: 21 | C24: 0
B25: 22 | C25: 0
B26: 23 | C26: 0
B27: 24 | C27: 0
B28: 25 | C28: 0
B29: 26 | C29: 0
B30: 27 | C30: 0
B31: 28 | C31: 0
B32: 29 | C32: 0
B33: 30 | C33: 0
B34: 31 | C34: 0
B35: 32 | C35: 0
B36: 33 | C36: 0
B37: 34 | C37: 0
B38: 35 | C38: 0
B39: 36 | C39: 0
B40: 37 | C40: 0
B41: 38 | C41: 0
B42: 39 | C42: 0
B43: 40 | C43: 0
B44: 41 | C44: 0
B45: 42 | C45: 0
B46: 43 | C46: 0
B47: 44 | C47: 0
B48: 45 | C48: 0
B49: 46 | C49: 0
B50: 47 | C50: 0
B51: 48 | C51: 130
B52: 49 | C52: 140
B53: 50 | C53: 150
B54: 51 | C54: 160
B55: 52 | C55: 105
B56: 53 | C56: 115
B57: 54 | C57: 125
B58: 55 | C58: 135
B59: 56 | C59: 100
B60: 57 | C60: 0
B61: 58 | C61: 0
B62: 59 | C62: 0
B63: 60 | C63: 0
B64: 61 | C64: 0
B65: 62 | C65: 0
B66: 63 | C66: 0
B67: 64 | C67: 0
B68: 65 | C68: 0
B69: 66 | C69: 0
B70: 67 | C70: 0
B71: 68 | C71: 0
B72: 69 | C72: 0
B73: 70 | C73: 0
B74: 71 | C74: 0
B75: 72 | C75: 0
B76: 73 | C76: 0
B77: 74 | C77: 0
B78: 75 | C78: 0
B79: 76 | C79: 0
B80: 77 | C80: 0
B81: 78 | C81: 0
B82: 79 | C82: 0
B83: 80 | C83: 0
B84: 81 | C84: 0
B85: 82 | C85: 0
B86: 83 | C86: 0
B87: 84 | C87: 0
B88: 85 | C88: 0
B89: 86 | C89: 0
B90: 87 | C90: 0
B91: 88 | C91: 0
B92: 89 | C92: 0
B93: 90 | C93: 0
B94: 91 | C94: 0
B95: 92 | C95: 0
B96: 93 | C96: 0
B97: 94 | C97: 0
B98: 95 | C98: 0
B99: 96 | C99: 0
B100: 97 | C100: 0
B101: 98 | C101: 0
B102: 99 | C102: 0
B103: 100 | C103: 0
B104: 101 | C104: 0
B105: 102 | C105: 0
B106: 103 | C106: 0
B107: 104 | C107: 0
B108: 105 | C108: 0
B109: 106 | C109: 0
B110: 107 | C110: 0
B111: 108 | C111: 0
B112: 109 | C112: 0
B113: 110 | C113: 0
B114: 111 | C114: 0
B115: 112 | C115: 0
B116: 113 | C116: 0
B117: 114 | C117: 0
B118: 115 | C118: 0
B119: 116 | C119: 0
B120: 117 | C120: 0
B121: 118 | C121: 0
B122: 119 | C122: 0
B123: 120 | C123: 0
B124: 121 | C124: 0
B125: 122 | C125: 0
B126: 123 | C126: 0
B127: 124 | C127: 0
B128: 125 | C128: 0
B129: 126 | C129: 0
B130: 127 | C130: 0
B131: 128 | C131: 0
B132: 129 | C132: 0
B133: 130 | C133: 0
B134: 131 | C134: 0
B135: 132 | C135: 0
B136: 133 | C136: 0
B137: 134 | C137: 0
B138: 135 | C138: 0
B139: 136 | C139: 0
B140: 137 | C140: 0
B141: 138 | C141: 0
B142: 139 | C142: 0
B143: 140 | C143: 0
B144: 141 | C144: 0
B145: 142 | C145: 0
B146: 143 | C146: 0
B147: 144 | C147: 0
B148: 145 | C148: 0
B149: 146 | C149: 0
B150: 147 | C150: 0
B151: 148 | C151: 0
B152: 149 | C152: 0
B153: 150 | C153: 0
B154: 151 | C154: 0
B155: 152 | C155: 0
B156: 153 | C156: 0
B157: 154 | C157: 0
B158: 155 | C158: 0
B159: 156 | C159: 0
B160: 157 | C160: 0
B161: 158 | C161: 0
B162: 159 | C162: 0
B163: 160 | C163: 0
B164: 161 | C164: 0
B165: 162 | C165: 0
B166: 163 | C166: 0
B167: 164 | C167: 0
B168: 165 | C168: 0
B169: 166 | C169: 0
B170: 167 | C170: 0
B171: 168 | C171: 0
B172: 169 | C172: 0
B173: 170 | C173: 0
B174: 171 | C174: 0
B175: 172 | C175: 0
B176: 173 | C176: 0
B177: 174 | C177: 0
B178: 175 | C178: 0
B179: 176 | C179: 0
B180: 177 | C180: 0
B181: 178 | C181: 0
B182: 179 | C182: 0
B183: 180 | C183: 0
B184: 181 | C184: 0
B185: 182 | C185: 0
B186: 183 | C186: 0
B187: 184 | C187: 0
B188: 185 | C188: 0
B189: 186 | C189: 0
B190: 187 | C190: 0
B191: 188 | C191: 0
B192: 189 | C192: 0
B193: 190 | C193: 0
B194: 191 | C194: 0
B195: 192 | C195: 0
B196: 193 | C196: 0
B197: 194 | C197: 0
B198: 195 | C198: 0
B199: 196 | C199: 0
B200: 197 | C200: 0
B201: 198 | C201: 0
B202: 199 | C202: 0
... 167 more rows

Sheet VIII poziom (hidden)
B3: Lp | C3: Wartość
B4: 1 | C4: 55
B5: 2 | C5: 45
B6: 3 | C6: 62
B7: 4 | C7: 52
B8: 5 | C8: 44
B9: 6 | C9: 56
B10: 7 | C10: 58
B11: 8 | C11: 59
B12: 9 | C12: 62
B13: 10 | C13: 47
B14: 11 | C14: 58

Sheet VII poziom (hidden)
B3: Lp | C3: Wartość
B4: 1 | C4: 55
B5: 2 | C5: 51
B6: 3 | C6: 62
B7: 4 | C7: 52
B8: 5 | C8: 44
B9: 6 | C9: 56

Sheet V poziom (hidden)
B3: Lp | C3: Wartość
B4: 1 | C4: 55
B5: 2 | C5: 51
B6: 3 | C6: 62

Sheet IV poziom (hidden)
B3: Lp | C3: Wartość
B4: 1 | C4: 55
B5: 2 | C5: 51
B6: 3 | C6: 62

Sheet PodsumowanieVIII (hidden)
F3: Wynik testu: | H3: P90 >= 0,75*Limit: Brak możliwości zmniejszenia częstotliwości monitorowania emisji
B5: Lp. | C5: Wynik pomiaru | D5: P90 | E5: 0,75*Limit
B6: 1 | C6: =Arkusz7!F3 -> 55 | D6: =Arkusz7!$F$16 -> 62 | E6: =Arkusz7!$F$17 -> 7.5e-06
B7: 2 | C7: =Arkusz7!F4 -> 45 | D7: =Arkusz7!$F$16 -> 62 | E7: =Arkusz7!$F$17 -> 7.5e-06
B8: 3 | C8: =Arkusz7!F5 -> 62 | D8: =Arkusz7!$F$16 -> 62 | E8: =Arkusz7!$F$17 -> 7.5e-06
B9: 4 | C9: =Arkusz7!F6 -> 52 | D9: =Arkusz7!$F$16 -> 62 | E9: =Arkusz7!$F$17 -> 7.5e-06
B10: 5 | C10: =Arkusz7!F7 -> 44 | D10: =Arkusz7!$F$16 -> 62 | E10: =Arkusz7!$F$17 -> 7.5e-06
B11: 6 | C11: =Arkusz7!F8 -> 56 | D11: =Arkusz7!$F$16 -> 62 | E11: =Arkusz7!$F$17 -> 7.5e-06
B12: 7 | C12: =Arkusz7!F9 -> 58 | D12: =Arkusz7!$F$16 -> 62 | E12: =Arkusz7!$F$17 -> 7.5e-06
B13: 8 | C13: =Arkusz7!F10 -> 59 | D13: =Arkusz7!$F$16 -> 62 | E13: =Arkusz7!$F$17 -> 7.5e-06
B14: 9 | C14: =Arkusz7!F11 -> 62 | D14: =Arkusz7!$F$16 -> 62 | E14: =Arkusz7!$F$17 -> 7.5e-06
B15: 10 | C15: =Arkusz7!F12 -> 47 | D15: =Arkusz7!$F$16 -> 62 | E15: =Arkusz7!$F$17 -> 7.5e-06
B16: 11 | C16: =Arkusz7!F13 -> 58 | D16: =Arkusz7!$F$16 -> 62 | E16: =Arkusz7!$F$17 -> 7.5e-06

Sheet PodsumowanieVII (hidden)
F3: Wynik testu: | H3: ULP(95%)95% < Limit: Możliwość zmniejszenia częstotliwości monitorowania emisji
B5: Lp. | C5: Wynik pomiaru | D5: ULP(95%)95% | E5: Limit
B6: 1 | C6: =Arkusz7!I3 -> 55 | D6: =Arkusz7!$I$19 -> 105.3817503 | E6: =Arkusz7!$C$2 -> 1e-05
B7: 2 | C7: =Arkusz7!I4 -> 51 | D7: =Arkusz7!$I$19 -> 105.3817503 | E7: =Arkusz7!$C$2 -> 1e-05
B8: 3 | C8: =Arkusz7!I5 -> 62 | D8: =Arkusz7!$I$19 -> 105.3817503 | E8: =Arkusz7!$C$2 -> 1e-05
B9: 4 | C9: =Arkusz7!I6 -> 52 | D9: =Arkusz7!$I$19 -> 105.3817503 | E9: =Arkusz7!$C$2 -> 1e-05
B10: 5 | C10: =Arkusz7!I7 -> 44 | D10: =Arkusz7!$I$19 -> 105.3817503 | E10: =Arkusz7!$C$2 -> 1e-05
B11: 6 | C11: =Arkusz7!I8 -> 56 | D11: =Arkusz7!$I$19 -> 105.3817503 | E11: =Arkusz7!$C$2 -> 1e-05

Sheet VII poziomW (hidden)
B3: Lp | C3: Wartość
B4: 1 | C4: 150
B5: 2 | C5: 120
B6: 3 | C6: 110
B7: 4 | C7: 100
B8: 5 | C8: 115
B9: 6 | C9: 130

Sheet VI poziomW (hidden)
B3: Lp | C3: Wartość
B4: 1 | C4: 50
B5: 2 | C5: 48
B6: 3 | C6: 70
B7: 4 | C7: 65

Sheet V poziomW (hidden)
B3: Lp | C3: Wartość
B4: 1 | C4: 5
B5: 2 | C5: 5.5
B6: 3 | C6: 5.4

Sheet IV poziomW (hidden)
B3: Lp | C3: Wartość
B4: 1 | C4: 55
B5: 2 | C5: 51
B6: 3 | C6: 62

Sheet III poziomW (hidden)
B3: Lp | C3: Wartość
B4: 1 | C4: 150
B5: 2 | C5: 160
B6: 3 | C6: 155

Sheet PodsumowanieV (hidden)
F3: Wynik testu: | H3: ULP(95%)95% >= Limit: Brak możliwości zmniejszenia częstotliwości monitorowania emisji
B5: Lp. | C5: Wynik pomiaru | D5: ULP(95%)95% | E5: Limit
B6: 1 | C6: =Arkusz7!O3 -> 55 | D6: =Arkusz7!$O$19 -> 167.7609897 | E6: =Arkusz7!$C$2 -> 1e-05
B7: 2 | C7: =Arkusz7!O4 -> 51 | D7: =Arkusz7!$O$19 -> 167.7609897 | E7: =Arkusz7!$C$2 -> 1e-05
B8: 3 | C8: =Arkusz7!O5 -> 62 | D8: =Arkusz7!$O$19 -> 167.7609897 | E8: =Arkusz7!$C$2 -> 1e-05

Sheet Arkusz7 (hidden)
E1: 8 | H1: 7 | L1: raz dziennie | N1: 5 | Q1: 4 | T1: Nowo dodane co 12 mscy III poziom | Y1: Tabela f | AE1: raz na kwartał
B2: Limit | C2: 1e-05 | E2: Lp | F2: Wartość | H2: Lp | I2: Wartość | N2: Lp | O2: Wartość | Q2: Lp | R2: Wartość | T2: Lp | U2: Wartość | Y2: Liczba stopni swobody | Z2: Poziom ufności (1-α) | AE2: Lp | AF2: Wartość
E3: 1 | F3: ='VIII poziom'!C4 -> 55 | H3: 1 | I3: ='VII poziom'!C4 -> 55 | N3: 1 | O3: ='V poziom'!C4 -> 55 | Q3: 1 | R3: ='IV poziom'!C4 -> 55 | T3: 1 | U3: ='III poziom'!C4 -> 125 | Y3: k=n-1 | Z3: 0.9 | AA3: 0.95 | AE3: 1 | AF3: ='VI poziom'!C4 -> 50
E4: 2 | F4: ='VIII poziom'!C5 -> 45 | H4: 2 | I4: ='VII poziom'!C5 -> 51 | N4: 2 | O4: ='V poziom'!C5 -> 51 | Q4: 2 | R4: ='IV poziom'!C5 -> 51 | T4: 2 | U4: ='III poziom'!C5 -> 150 | Y4: 2 | Z4: 1.64 | AA4: 2.3 | AE4: 2 | AF4: ='VI poziom'!C5 -> 120
E5: 3 | F5: ='VIII poziom'!C6 -> 62 | H5: 3 | I5: ='VII poziom'!C6 -> 62 | N5: 3 | O5: ='V poziom'!C6 -> 62 | Q5: 3 | R5: ='IV poziom'!C6 -> 62 | T5: 3 | U5: ='III poziom'!C6 -> 300 | Y5: 3 | Z5: 1.49 | AA5: 2.07 | AE5: 3 | AF5: ='VI poziom'!C6 -> 60
E6: 4 | F6: ='VIII poziom'!C7 -> 52 | H6: 4 | I6: ='VII poziom'!C7 -> 52 | Y6: 4 | Z6: 1.37 | AA6: 1.88 | AE6: 4 | AF6: ='VI poziom'!C7 -> 65
E7: 5 | F7: ='VIII poziom'!C8 -> 44 | H7: 5 | I7: ='VII poziom'!C8 -> 44 | Y7: 5 | Z7: 1.28 | AA7: 1.75
E8: 6 | F8: ='VIII poziom'!C9 -> 56 | H8: 6 | I8: ='VII poziom'!C9 -> 56 | Y8: 6 | Z8: 1.2 | AA8: 1.65
E9: 7 | F9: ='VIII poziom'!C10 -> 58 | Y9: 7 | Z9: 1.14 | AA9: 1.56
E10: 8 | F10: ='VIII poziom'!C11 -> 59 | H10: k=n-1 | I10: =COUNT(TabelaVII[Wartość])-1 -> 5 | L10: =COUNT(TabelaVI[Wartość])-1 -> 95 | O10: =COUNT(TabelaV[Wartość])-1 -> 2 | R10: =COUNT(TabelaIV[Wartość])-1 -> 2 | U10: =COUNT(TabelaIIIW[Wartość])-1 -> 2 | Y10: 8 | Z10: 1.09 | AA10: 1.49 | AF10: =COUNT(Tabela31821[Wartość])-1 -> 3
E11: 9 | F11: ='VIII poziom'!C12 -> 62 | Y11: 9 | Z11: 1.06 | AA11: 1.41
E12: 10 | F12: ='VIII poziom'!C13 -> 47 | Y12: 10 | Z12: 1.04 | AA12: 1.34
E13: 11 | F13: ='VIII poziom'!C14 -> 58
D16: pierwszy test | E16: P90 | F16: =_xlfn.PERCENTILE.INC(Arkusz7!$F$3:$F$13,0.9) -> 62 | H16: xśr | I16: =AVERAGE(TabelaVII[Wartość]) -> 53.33333333 | K16: P90 | L16: =_xlfn.PERCENTILE.INC(TabelaVI[Wartość],0.9) -> 160 | N16: xśr | O16: =AVERAGE(TabelaV[Wartość]) -> 56 | Q16: xśr | R16: =AVERAGE(TabelaIV[Wartość]) -> 56 | T16: xśr | U16: =AVERAGE(TabelaIV27[Wartość]) -> 191.6666667 | AE16: xśr | AF16: =AVERAGE(Tabela31821[Wartość]) -> 73.75
E17: 0,75LIMIT | F17: =0.75*C2 -> 7.5e-06 | H17: sn-1 | I17: =_xlfn.STDEV.S(TabelaVII[Wartość]) -> 5.988878582 | K17: 0,75LIMIT | L17: =0.75*C2 -> 7.5e-06 | N17: sn-1 | O17: =_xlfn.STDEV.S(TabelaV[Wartość]) -> 5.567764363 | Q17: sn-1 | R17: =_xlfn.STDEV.S(TabelaIV[Wartość]) -> 5.567764363 | T17: sn-1 | U17: =_xlfn.STDEV.S(TabelaIV27[Wartość]) -> 94.64847243 | AE17: sn-1 | AF17: =_xlfn.STDEV.S(Tabela31821[Wartość]) -> 31.45764348
H18: ta/2,k | I18: =_xlfn.T.INV.2T(0.05,I10) -> 2.570581836 | N18: ta/2,k | O18: =_xlfn.T.INV.2T(0.05,O10) -> 4.30265273 | Q18: ta/2,k | R18: =_xlfn.T.INV.2T(0.05,R10) -> 4.30265273 | T18: ta/2,k | U18: =_xlfn.T.INV.2T(0.05,U10) -> 4.30265273 | AE18: ta/2,k | AF18: =_xlfn.T.INV.2T(0.05,AF10) -> 3.182446305
H19: ULP95(95) | I19: =(I16+I18*I17/SQRT(I10))*AA7 -> 105.3817503 | N19: ULP95(95) | O19: =(O16+O18*O17/SQRT(O10))*AA4 -> 167.7609897 | Q19: ULP95(95) | R19: =(R16+R18*R17/SQRT(R10))*AA4 -> 167.7609897 | T19: ULP95(95) | U19: =(U16+U18*U17/SQRT(U10))*AA4 -> 1103.145514 | AE19: ULP95(95) | AF19: =(AF16+AF18*AF17/SQRT(AF10))*AA5 -> 272.3081709
D23: po roku | E23: P90 | F23: =_xlfn.PERCENTILE.INC(Tabela16[Wartość],0.9) -> 62 | H23: xśr | I23: =AVERAGE(TabelaVIIW[Wartość]) -> 120.8333333 | K23: xśr | L23: =AVERAGE(TabelaVIW[Wartość]) -> 58.25 | N23: xśr | O23: =AVERAGE(TabelaVW[Wartość]) -> 5.3 | Q23: xśr | R23: =AVERAGE(TabelaIVW[Wartość]) -> 56 | T23: xśr | U23: =AVERAGE(TabelaIIIW[Wartość]) -> 155
E24: Limit | F24: =C2 -> 1e-05 | H24: sn-1 | I24: =_xlfn.STDEV.S(TabelaVIIW[Wartość]) -> 17.44037461 | K24: sn-1 | L24: =_xlfn.STDEV.S(TabelaVIW[Wartość]) -> 10.90489187 | N24: sn-1 | O24: =_xlfn.STDEV.S(TabelaVW[Wartość]) -> 0.2645751311 | Q24: sn-1 | R24: =_xlfn.STDEV.S(TabelaIVW[Wartość]) -> 5.567764363 | T24: sn-1 | U24: =_xlfn.STDEV.S(TabelaIIIW[Wartość]) -> 5
E25: 0,9Limit | F25: =0.9*F24 -> 9e-06 | H25: ta/2,k | I25: =_xlfn.T.INV.2T(0.1,$I$10) -> 2.015048373 | K25: ta/2,k | L25: =_xlfn.T.INV.2T(0.1,$L$10) -> 1.661051817 | N25: ta/2,k | O25: =_xlfn.T.INV.2T(0.1,$O$10) -> 2.91998558 | Q25: ta/2,k | R25: =_xlfn.T.INV.2T(0.1,$R$10) -> 2.91998558 | T25: ta/2,k | U25: =_xlfn.T.INV.2T(0.1,$R$10) -> 2.91998558
E26: 0,75Limit | F26: =0.75*F24 -> 7.5e-06 | H26: ULP95(90) | I26: =(I23+I25*I24/SQRT(I10))*Z7 -> 174.7838073 | K26: ULP95(90) | L26: =(L23+L25*L24/SQRT(L41))*Z5 -> 102.3747506 | N26: ULP95(90) | O26: =(O23+O25*O24/SQRT(O10))*Z4 -> 9.587898021 | Q26: ULP95(90) | R26: =(R23+R25*R24/SQRT(R10))*Z4 -> 110.6934314 | T26: ULP95(90) | U26: =(U23+U25*U24/SQRT(U10))*Z4 -> 271.1308812
H29: xśr | I29: =AVERAGE(TabelaVIIW[Wartość]) -> 120.8333333 | K29: xśr | L29: =AVERAGE(TabelaVIW[Wartość]) -> 58.25 | N29: xśr | O29: =AVERAGE(TabelaVW[Wartość]) -> 5.3 | Q29: xśr | R29: =AVERAGE(TabelaIVW[Wartość]) -> 56 | T29: xśr | U29: =AVERAGE(TabelaIIIW[Wartość]) -> 155
H30: sn-1 | I30: =_xlfn.STDEV.S(TabelaVIIW[Wartość]) -> 17.44037461 | K30: sn-1 | L30: =_xlfn.STDEV.S(TabelaVIW[Wartość]) -> 10.90489187 | N30: sn-1 | O30: =_xlfn.STDEV.S(TabelaVW[Wartość]) -> 0.2645751311 | Q30: sn-1 | R30: =_xlfn.STDEV.S(TabelaIVW[Wartość]) -> 5.567764363 | T30: sn-1 | U30: =_xlfn.STDEV.S(TabelaIIIW[Wartość]) -> 5
H31: ta/2,k | I31: =_xlfn.T.INV.2T(0.05,$I$10) -> 2.570581836 | K31: ta/2,k | L31: =_xlfn.T.INV.2T(0.05,$L$10) -> 1.985251004 | N31: ta/2,k | O31: =_xlfn.T.INV.2T(0.05,$O$10) -> 4.30265273 | Q31: ta/2,k | R31: =_xlfn.T.INV.2T(0.05,$R$10) -> 4.30265273 | T31: ta/2,k | U31: =_xlfn.T.INV.2T(0.05,$R$10) -> 4.30265273
H32: ULP95(95) | I32: =(I29+I31*I30/SQRT(I10))*AA7 -> 246.5448529 | K32: ULP95(95) | L32: =(L29+L31*L30/SQRT(L41))*AA5 -> 146.4504832 | N32: ULP95(95) | O32: =(O29+O31*O30/SQRT(O10))*AA4 -> 14.04139102 | Q32: ULP95(95) | R32: =(R29+R31*R30/SQRT(R10))*AA4 -> 167.7609897 | T32: ULP95(95) | U32: =(U29+U31*U30/SQRT(U10))*AA4 -> 391.4880016
E35: Lp | F35: Wartość | H35: Lp | I35: Wartość | K35: Lp | L35: Wartość | N35: Lp | O35: Wartość | Q35: Lp | R35: Wartość | T35: Lp | U35: Wartość
E36: ='VIII poziomW'!B4 -> 1 | F36: ='VIII poziomW'!C4 -> 55 | H36: 1 | I36: ='VII poziomW'!C4 -> 150 | K36: 1 | L36: ='VI poziomW'!C4 -> 50 | N36: 1 | O36: ='V poziomW'!C4 -> 5 | Q36: 1 | R36: ='IV poziomW'!C4 -> 55 | T36: 1 | U36: ='III poziomW'!C4 -> 150
E37: ='VIII poziomW'!B5 -> 2 | F37: ='VIII poziomW'!C5 -> 45 | H37: 2 | I37: ='VII poziomW'!C5 -> 120 | K37: 2 | L37: ='VI poziomW'!C5 -> 48 | N37: 2 | O37: ='V poziomW'!C5 -> 5.5 | Q37: 2 | R37: ='IV poziomW'!C5 -> 51 | T37: 2 | U37: ='III poziomW'!C5 -> 160
E38: ='VIII poziomW'!B6 -> 3 | F38: ='VIII poziomW'!C6 -> 62 | H38: 3 | I38: ='VII poziomW'!C6 -> 110 | K38: 3 | L38: ='VI poziomW'!C6 -> 70 | N38: 3 | O38: ='V poziomW'!C6 -> 5.4 | Q38: 3 | R38: ='IV poziomW'!C6 -> 62 | T38: 3 | U38: ='III poziomW'!C6 -> 155
E39: ='VIII poziomW'!B7 -> 4 | F39: ='VIII poziomW'!C7 -> 52 | H39: 4 | I39: ='VII poziomW'!C7 -> 100 | K39: 4 | L39: ='VI poziomW'!C7 -> 65
E40: ='VIII poziomW'!B8 -> 5 | F40: ='VIII poziomW'!C8 -> 44 | H40: 5 | I40: ='VII poziomW'!C8 -> 115
E41: ='VIII poziomW'!B9 -> 6 | F41: ='VIII poziomW'!C9 -> 56 | H41: 6 | I41: ='VII poziomW'!C9 -> 130 | L41: =3 -> 3
E42: ='VIII poziomW'!B10 -> 7 | F42: ='VIII poziomW'!C10 -> 58
E43: ='VIII poziomW'!B11 -> 8 | F43: ='VIII poziomW'!C11 -> 59
E44: ='VIII poziomW'!B12 -> 9 | F44: ='VIII poziomW'!C12 -> 64
E45: ='VIII poziomW'!B13 -> 10 | F45: ='VIII poziomW'!C13 -> 47
E46: ='VIII poziomW'!B14 -> 11 | F46: ='VIII poziomW'!C14 -> 58
AF419: =COUNT(TabelaVI[Wartość]) -> 96
AE420: Lp | AF420: Wartość | AG420: Kolumna1
AE421: 1 | AF421: 500
AE422: 2 | AF422: 100
AE423: 3 | AF423: 30
AE424: 4 | AF424: 25
AE425: 5 | AF425: 30
AE426: 6 | AF426: 74
AE427: 7 | AF427: 1000
AE428: 8 | AF428: 55
AE429: 9 | AF429: 115
AE430: 10 | AF430: 135
AE431: 11 | AF431: 120
AE432: 12 | AF432: 160
AE433: 13 | AF433: 105
AE434: 14 | AF434: 115
AE435: 15 | AF435: 130
AE436: 16 | AF436: 140
AE437: 17 | AF437: 150
AE438: 18 | AF438: 160
AE439: 19 | AF439: 105
AE440: 20 | AF440: 115
AE441: 21 | AF441: 125
AE442: 22 | AF442: 135
AE443: 23 | AF443: 100
AE444: 24 | AF444: 150
AE445: 25 | AF445: 160
AE446: 26 | AF446: 105
AE447: 27 | AF447: 115
AE448: 28 | AF448: 125
AE449: 29 | AF449: 135
AE450: 30 | AF450: 100
AE451: 31 | AF451: 110
AE452: 32 | AF452: 120
AE453: 33 | AF453: 130
AE454: 34 | AF454: 140
AE455: 35 | AF455: 150
AE456: 36 | AF456: 160
AE457: 37 | AF457: 105
AE458: 38 | AF458: 115
AE459: 39 | AF459: 125
AE460: 40 | AF460: 135
AE461: 41 | AF461: 100
AE462: 42 | AF462: 110
AE463: 43 | AF463: 120
AE464: 44 | AF464: 130
AE465: 45 | AF465: 140
AE466: 46 | AF466: 150
AE467: 47 | AF467: 160
AE468: 48 | AF468: 105
AE469: 49 | AF469: 115
AE470: 50 | AF470: 125
AE471: 51 | AF471: 135
AE472: 52 | AF472: 100
AE473: 53 | AF473: 110
AE474: 54 | AF474: 120
AE475: 55 | AF475: 130
AE476: 56 | AF476: 140
AE477: 57 | AF477: 150
AE478: 58 | AF478: 160
AE479: 59 | AF479: 105
AE480: 60 | AF480: 115
AE481: 61 | AF481: 125
AE482: 62 | AF482: 135
AE483: 63 | AF483: 100
AE484: 64 | AF484: 110
AE485: 65 | AF485: 120
AE486: 66 | AF486: 130
AE487: 67 | AF487: 140
AE488: 68 | AF488: 150
AE489: 69 | AF489: 160
AE490: 70 | AF490: 105
AE491: 71 | AF491: 115
AE492: 72 | AF492: 125
AE493: 73 | AF493: 135
AE494: 74 | AF494: 100
AE495: 75 | AF495: 110
AE496: 76 | AF496: 120
AE497: 77 | AF497: 130
AE498: 78 | AF498: 140
AE499: 79 | AF499: 150
AE500: 80 | AF500: 160
AE501: 81 | AF501: 105
AE502: 82 | AF502: 115
AE503: 83 | AF503: 125
AE504: 84 | AF504: 135
AE505: 85 | AF505: 100
AE506: 86 | AF506: 110
AE507: 87 | AF507: 120
AE508: 88 | AF508: 130
AE509: 89 | AF509: 140
AE510: 90 | AF510: 150
AE511: 91 | AF511: 160
AE512: 92 | AF512: 105
AE513: 93 | AF513: 115
AE514: 94 | AF514: 125
AE515: 95 | AF515: 135
AE516: 96 | AF516: 100
AE517: 97
AE518: 98
AE519: 99
AE520: 100
AE521: 101
AE522: 102
AE523: 103
AE524: 104
AE525: 105
AE526: 106
AE527: 107
AE528: 108
AE529: 109
AE530: 110
AE531: 111
AE532: 112
AE533: 113
AE534: 114
AE535: 115
AE536: 116
AE537: 117
AE538: 118
AE539: 119
AE540: 120
AE541: 121
AE542: 122
AE543: 123
AE544: 124
AE545: 125
AE546: 126
AE547: 127
AE548: 128
AE549: 129
AE550: 130
AE551: 131
AE552: 132
AE553: 133
AE554: 134
AE555: 135
AE556: 136
AE557: 137
AE558: 138
AE559: 139
AE560: 140
AE561: 141
AE562: 142
AE563: 143
AE564: 144
AE565: 145
AE566: 146
AE567: 147
AE568: 148
AE569: 149
AE570: 150
AE571: 151
AE572: 152
AE573: 153
AE574: 154
AE575: 155
AE576: 156
AE577: 157
AE578: 158
AE579: 159
AE580: 160
AE581: 161
... 205 more rows

Sheet VI poziom (hidden)
B3: Lp | C3: Wartość
B4: 1 | C4: 50
B5: 2 | C5: 120
B6: 3 | C6: 60
B7: 4 | C7: 65

Sheet PodsumowanieVI (hidden)
F3: Wynik testu: | H3: ULP(95%)95% >= Limit: Brak możliwości zmniejszenia częstotliwości monitorowania emisji
B5: Lp. | C5: Wynik pomiaru | D5: ULP(95%)95% | E5: Limit
B6: 1 | C6: =Arkusz7!AF3 -> 50 | D6: =Arkusz7!$AF$19 -> 272.3081709 | E6: =Arkusz7!$C$2 -> 1e-05
B7: 2 | C7: =Arkusz7!AF4 -> 120 | D7: =Arkusz7!$AF$19 -> 272.3081709 | E7: =Arkusz7!$C$2 -> 1e-05
B8: 3 | C8: =Arkusz7!AF5 -> 60 | D8: =Arkusz7!$AF$19 -> 272.3081709 | E8: =Arkusz7!$C$2 -> 1e-05
B9: 4 | C9: =Arkusz7!AF6 -> 65 | D9: =Arkusz7!$AF$19 -> 272.3081709 | E9: =Arkusz7!$C$2 -> 1e-05

Sheet VIII poziomW (hidden)
B3: Lp | C3: Wartość
B4: 1 | C4: 55
B5: 2 | C5: 45
B6: 3 | C6: 62
B7: 4 | C7: 52
B8: 5 | C8: 44
B9: 6 | C9: 56
B10: 7 | C10: 58
B11: 8 | C11: 59
B12: 9 | C12: 64
B13: 10 | C13: 47
B14: 11 | C14: 58

Sheet PodsumowanieIV (hidden)
F3: Wynik testu: | H3: ULP(95%)95% >= Limit: Brak możliwości zmniejszenia częstotliwości monitorowania emisji
B5: Lp. | C5: Wynik pomiaru | D5: ULP(95%)95% | E5: Limit
B6: 1 | C6: =Arkusz7!R3 -> 55 | D6: =Arkusz7!$R$19 -> 167.7609897 | E6: =Arkusz7!$C$2 -> 1e-05
B7: 2 | C7: =Arkusz7!R4 -> 51 | D7: =Arkusz7!$R$19 -> 167.7609897 | E7: =Arkusz7!$C$2 -> 1e-05
B8: 3 | C8: =Arkusz7!R5 -> 62 | D8: =Arkusz7!$R$19 -> 167.7609897 | E8: =Arkusz7!$C$2 -> 1e-05

Sheet PodsumowanieVIIW (hidden)
G3: Wynik testu: | I3: ULP(95%)90% >= Limit: Konieczność zwiększenia częstotliwości pomiarów emisji do poprzedniego poziomu
B5: Lp. | C5: Wynik pomiaru | D5: ULP(95%)90% | E5: ULP(95%)95% | F5: Limit
B6: 1 | C6: =Arkusz7!I36 -> 150 | D6: =Arkusz7!$I$26 -> 174.7838073 | E6: =Arkusz7!$I$32 -> 246.5448529 | F6: =Arkusz7!$C$2 -> 1e-05
B7: 2 | C7: =Arkusz7!I37 -> 120 | D7: =Arkusz7!$I$26 -> 174.7838073 | E7: =Arkusz7!$I$32 -> 246.5448529 | F7: =Arkusz7!$C$2 -> 1e-05
B8: 3 | C8: =Arkusz7!I38 -> 110 | D8: =Arkusz7!$I$26 -> 174.7838073 | E8: =Arkusz7!$I$32 -> 246.5448529 | F8: =Arkusz7!$C$2 -> 1e-05
B9: 4 | C9: =Arkusz7!I39 -> 100 | D9: =Arkusz7!$I$26 -> 174.7838073 | E9: =Arkusz7!$I$32 -> 246.5448529 | F9: =Arkusz7!$C$2 -> 1e-05
B10: 5 | C10: =Arkusz7!I40 -> 115 | D10: =Arkusz7!$I$26 -> 174.7838073 | E10: =Arkusz7!$I$32 -> 246.5448529 | F10: =Arkusz7!$C$2 -> 1e-05
B11: 6 | C11: =Arkusz7!I41 -> 130 | D11: =Arkusz7!$I$26 -> 174.7838073 | E11: =Arkusz7!$I$32 -> 246.5448529 | F11: =Arkusz7!$C$2 -> 1e-05

Sheet PodsumowanieVIIIW (hidden)
H3: Wynik testu: | J3: P90 >= 0,9Limit: Konieczność zwiększenia częstotliwości pomiarów emisji do poprzedniego poziomu
B5: Lp. | C5: Wynik pomiaru | D5: P90 | E5: Limit | F5: 0,9Limit | G5: 0,75Limit
B6: 1 | C6: =Arkusz7!F36 -> 55 | D6: =Arkusz7!$F$23 -> 62 | E6: =Arkusz7!$C$2 -> 1e-05 | F6: =0.9*E6 -> 9e-06 | G6: =0.75*E6 -> 7.5e-06
B7: 2 | C7: =Arkusz7!F37 -> 45 | D7: =Arkusz7!$F$23 -> 62 | E7: =Arkusz7!$C$2 -> 1e-05 | F7: =0.9*E7 -> 9e-06 | G7: =0.75*E7 -> 7.5e-06
B8: 3 | C8: =Arkusz7!F38 -> 62 | D8: =Arkusz7!$F$23 -> 62 | E8: =Arkusz7!$C$2 -> 1e-05 | F8: 9e-06 | G8: 7.5e-06
B9: 4 | C9: =Arkusz7!F39 -> 52 | D9: =Arkusz7!$F$23 -> 62 | E9: =Arkusz7!$C$2 -> 1e-05 | F9: 9e-06 | G9: 7.5e-06
B10: 5 | C10: =Arkusz7!F40 -> 44 | D10: =Arkusz7!$F$23 -> 62 | E10: =Arkusz7!$C$2 -> 1e-05 | F10: 9e-06 | G10: 7.5e-06
B11: 6 | C11: =Arkusz7!F41 -> 56 | D11: =Arkusz7!$F$23 -> 62 | E11: =Arkusz7!$C$2 -> 1e-05 | F11: 9e-06 | G11: 7.5e-06
B12: 7 | C12: =Arkusz7!F42 -> 58 | D12: =Arkusz7!$F$23 -> 62 | E12: =Arkusz7!$C$2 -> 1e-05 | F12: 9e-06 | G12: 7.5e-06
B13: 8 | C13: =Arkusz7!F43 -> 59 | D13: =Arkusz7!$F$23 -> 62 | E13: =Arkusz7!$C$2 -> 1e-05 | F13: 9e-06 | G13: 7.5e-06
B14: 9 | C14: =Arkusz7!F44 -> 64 | D14: =Arkusz7!$F$23 -> 62 | E14: =Arkusz7!$C$2 -> 1e-05 | F14: 9e-06 | G14: 7.5e-06
B15: 10 | C15: =Arkusz7!F45 -> 47 | D15: =Arkusz7!$F$23 -> 62 | E15: =Arkusz7!$C$2 -> 1e-05 | F15: 9e-06 | G15: 7.5e-06
B16: 11 | C16: =Arkusz7!F46 -> 58 | D16: =Arkusz7!$F$23 -> 62 | E16: =Arkusz7!$C$2 -> 1e-05 | F16: 9e-06 | G16: 7.5e-06

Sheet PodsumowanieVIW (hidden)
G3: Wynik testu: | I3: ULP(95%)90% >= Limit: Konieczność zwiększenia częstotliwości pomiarów emisji do poprzedniego poziomu
B5: Lp. | C5: Wynik pomiaru | D5: ULP(95%)90% | E5: ULP(95%)95% | F5: Limit
B6: 1 | C6: =Arkusz7!L36 -> 50 | D6: =Arkusz7!$L$26 -> 102.3747506 | E6: =Arkusz7!$L$32 -> 146.4504832 | F6: =Arkusz7!$C$2 -> 1e-05
B7: 2 | C7: =Arkusz7!L37 -> 48 | D7: =Arkusz7!$L$26 -> 102.3747506 | E7: =Arkusz7!$L$32 -> 146.4504832 | F7: =Arkusz7!$C$2 -> 1e-05
B8: 3 | C8: =Arkusz7!L38 -> 70 | D8: =Arkusz7!$L$26 -> 102.3747506 | E8: =Arkusz7!$L$32 -> 146.4504832 | F8: =Arkusz7!$C$2 -> 1e-05
B9: 4 | C9: =Arkusz7!L39 -> 65 | D9: =Arkusz7!$L$26 -> 102.3747506 | E9: =Arkusz7!$L$32 -> 146.4504832 | F9: =Arkusz7!$C$2 -> 1e-05

Sheet PodsumowanieVW (hidden)
G3: Wynik testu: | I3: ULP(95%)90% < Limit: Zmniejszona częstotliwość pomiaru emisji może być utrzymana w kolejnym okresie
B5: Lp. | C5: Wynik pomiaru | D5: ULP(95%)90% | E5: ULP(95%)95% | F5: Limit
B6: 1 | C6: =Arkusz7!O36 -> 5 | D6: =Arkusz7!$O$26 -> 9.587898021 | E6: =Arkusz7!$O$32 -> 14.04139102 | F6: =Arkusz7!$C$2 -> 1e-05
B7: 2 | C7: =Arkusz7!O37 -> 5.5 | D7: =Arkusz7!$O$26 -> 9.587898021 | E7: =Arkusz7!$O$32 -> 14.04139102 | F7: =Arkusz7!$C$2 -> 1e-05
B8: 3 | C8: =Arkusz7!O38 -> 5.4 | D8: =Arkusz7!$O$26 -> 9.587898021 | E8: =Arkusz7!$O$32 -> 14.04139102 | F8: =Arkusz7!$C$2 -> 1e-05

Sheet PodsumowanieIVW (hidden)
G3: Wynik testu: | I3: ULP(95%)90% >= Limit: Konieczność zwiększenia częstotliwości pomiarów emisji do poprzedniego poziomu
B5: Lp. | C5: Wynik pomiaru | D5: ULP(95%)90% | E5: ULP(95%)95% | F5: Limit
B6: 1 | C6: =Arkusz7!R36 -> 55 | D6: =Arkusz7!$R$26 -> 110.6934314 | E6: =Arkusz7!$R$32 -> 167.7609897 | F6: =Arkusz7!$C$2 -> 1e-05
B7: 2 | C7: =Arkusz7!R37 -> 51 | D7: =Arkusz7!$R$26 -> 110.6934314 | E7: =Arkusz7!$R$32 -> 167.7609897 | F7: =Arkusz7!$C$2 -> 1e-05
B8: 3 | C8: =Arkusz7!R38 -> 62 | D8: =Arkusz7!$R$26 -> 110.6934314 | E8: =Arkusz7!$R$32 -> 167.7609897 | F8: =Arkusz7!$C$2 -> 1e-05

Sheet PodsumowanieIIIW (hidden)
G3: Wynik testu: | I3: ULP(95%)90% >= Limit: Konieczność zwiększenia częstotliwości pomiarów emisji do poprzedniego poziomu
B5: Lp. | C5: Wynik pomiaru | D5: ULP(95%)90% | E5: ULP(95%)95% | F5: Limit
B6: 1 | C6: =Arkusz7!U36 -> 150 | D6: =Arkusz7!$U$26 -> 271.1308812 | E6: =Arkusz7!$U$32 -> 391.4880016 | F6: =Arkusz7!$C$2 -> 1e-05
B7: 2 | C7: =Arkusz7!U37 -> 160 | D7: =Arkusz7!$U$26 -> 271.1308812 | E7: =Arkusz7!$U$32 -> 391.4880016 | F7: =Arkusz7!$C$2 -> 1e-05
B8: 3 | C8: =Arkusz7!U38 -> 155 | D8: =Arkusz7!$U$26 -> 271.1308812 | E8: =Arkusz7!$U$32 -> 391.4880016 | F8: =Arkusz7!$C$2 -> 1e-05

Sheet III poziom (hidden)
B1: 3 ostatnie wyniki z co najwyżej 36 ubiegłych miesięcy
B3: Lp | C3: Wartość
B4: 1 | C4: 125
B5: 2 | C5: 150
B6: 3 | C6: 300

Sheet PodsumowanieIII (hidden)
F3: Wynik testu: | H3: ULP(95%)95% >= Limit: Brak możliwości zmniejszenia częstotliwości monitorowania emisji
B5: Lp. | C5: Wynik pomiaru | D5: ULP(95%)95% | E5: Limit
B6: 1 | C6: =Arkusz7!U3 -> 125 | D6: =Arkusz7!U19 -> 1103.145514 | E6: =Arkusz7!$C$2 -> 1e-05
B7: 2 | C7: =Arkusz7!U4 -> 150 | D7: =Arkusz7!U19 -> 1103.145514 | E7: =Arkusz7!$C$2 -> 1e-05
B8: 3 | C8: =Arkusz7!U5 -> 300 | D8: =Arkusz7!$U$19 -> 1103.145514 | E8: =Arkusz7!$C$2 -> 1e-05
